bitfinex/quotes_BTCUSD_20220207
["timestamp","ask_amount","ask_price","bid_price","bid_amount"]
[1644198181630,0.045,42168.0,42164.0,0.05]
[1644198181821,0.045,42168.0,42167.0,0.01828495]
[1644198182023,0.08607151,42168.0,42167.0,0.01828495]
[1644198183873,0.08607151,42168.0,42165.0,0.11859]
[1644198184376,0.08607151,42168.0,42165.0,0.17787958]
[1644198184973,0.32607151,42168.0,42165.0,0.17787958]
[1644198185174,0.32607151,42168.0,42165.0,0.22787958]
[1644198186275,0.28107151,42168.0,42166.0,0.05]
[1644198186577,0.045,42167.0,42165.0,0.16859]
[1644198186775,0.045,42167.0,42165.0,0.109295]
[1644198187321,0.28107151,42168.0,42165.0,0.109295]
[1644198187723,0.28156791,42168.0,42166.0,0.059292]
[1644198188120,0.28156791,42168.0,42166.0,0.177866]
[1644198188822,0.28156791,42168.0,42165.0,0.109295]
[1644198188823,0.045,42167.0,42165.0,0.109295]
[1644198189021,0.05132235,42167.0,42165.0,0.05]
[1644198189221,0.20373098,42166.0,42164.0,0.05]
[1644198189423,0.04107151,42165.0,42164.0,0.109296]
[1644198189625,0.00655013,42166.0,42164.0,0.159296]
[1644198190022,0.24,42168.0,42164.0,0.159296]
[1644198190222,0.24049638,42168.0,42164.0,0.159296]
[1644198190872,0.24049638,42168.0,42165.0,0.059282]
[1644198191071,0.24,42168.0,42166.0,0.059288]
[1644198191274,0.04107151,42167.0,42164.0,0.109296]
[1644198191471,0.03449172,42166.0,42164.0,0.109296]
[1644198191872,0.0494603,42167.0,42164.0,0.109296]
[1644198192072,0.24956021,42167.0,42164.0,0.109296]
[1644198192276,0.0494603,42167.0,42164.0,0.109296]
[1644198192473,0.0494603,42167.0,42165.0,0.059293]
[1644198192474,0.00838879,42167.0,42165.0,0.059293]
[1644198192671,0.24049639,42168.0,42165.0,0.059293]
[1644198193472,0.24,42168.0,42165.0,0.059293]
[1644198193676,0.24,42168.0,42167.0,0.00892849]
[1644198193677,0.22616,42168.0,42167.0,0.00892849]
[1644198193876,0.2054,42168.0,42167.0,0.12748949]
[1644198194079,0.0004964,42169.0,42167.0,0.5364842]
[1644198194275,6.4e-06,42169.0,42168.0,0.56293094]
[1644198194530,6.4e-06,42177.0,42169.0,0.26714749]
[1644198194729,0.001,42181.0,42176.0,0.00892849]
[1644198194931,0.00271451,42182.0,42180.0,0.00892849]
[1644198195230,0.001,42193.0,42185.0,0.17635519]
[1644198195427,0.001,42193.0,42186.0,0.379425]
[1644198195827,0.001,42193.0,42186.0,0.869425]
[1644198195828,0.002,42188.0,42186.0,0.869425]
[1644198196031,0.002,42188.0,42187.0,0.05]
[1644198196226,0.002,42188.0,42187.0,0.41361621]
[1644198196427,0.002,42188.0,42187.0,0.51361621]
[1644198196929,0.002,42188.0,42187.0,0.1938]
[1644198197128,0.002,42188.0,42187.0,0.0938]
[1644198197329,0.04307151,42188.0,42187.0,0.0938]
[1644198197531,0.002,42188.0,42187.0,0.0938]
[1644198198286,0.002,42188.0,42187.0,0.0438]
[1644198199277,0.002,42188.0,42187.0,0.36971772]
[1644198199478,0.002,42188.0,42187.0,0.0438]
[1644198200082,0.002,42188.0,42187.0,0.221539]
[1644198200282,0.002,42188.0,42185.0,0.218492]
[1644198200283,0.047,42188.0,42185.0,0.118492]
[1644198200483,0.047,42188.0,42181.0,0.118535]
[1644198200484,0.04107151,42186.0,42181.0,0.118535]
[1644198200680,0.31405557,42187.0,42181.0,0.12746349]
[1644198200883,0.002,42188.0,42187.0,0.07339265]
[1644198201682,0.002,42188.0,42187.0,0.18691165]
[1644198202130,0.002,42188.0,42187.0,0.23691165]
[1644198202731,0.002,42188.0,42187.0,0.168519]
[1644198203128,0.001,42189.0,42188.0,0.75]
[1644198203333,0.001,42189.0,42187.0,0.168519]
[1644198204131,0.001,42189.0,42188.0,0.059259]
[1644198205234,0.001,42189.0,42188.0,0.06818749]
[1644198205432,0.001,42189.0,42188.0,0.059259]
[1644198206674,0.04207151,42189.0,42188.0,0.059259]
[1644198206874,0.28207151,42189.0,42188.0,0.059259]
[1644198207476,0.28207151,42189.0,42187.0,0.168519]
[1644198208176,0.28207151,42189.0,42186.0,0.118517]
[1644198208177,0.28207151,42189.0,42185.0,0.05]
[1644198208178,0.09132411,42188.0,42185.0,0.05]
[1644198208378,0.04107151,42186.0,42185.0,0.05]
[1644198209375,0.04023077,42187.0,42185.0,0.05]
[1644198209621,0.00809953,42188.0,42185.0,0.05]
[1644198209624,0.00041023,42188.0,42185.0,0.05]
[1644198210325,0.04107151,42186.0,42185.0,0.05]
[1644198211223,0.04107151,42186.0,42185.0,0.159267]
[1644198212321,0.04107151,42186.0,42185.0,0.05]
[1644198212721,0.00638041,42185.0,42181.0,0.11820349]
[1644198213121,0.04107151,42186.0,42181.0,0.11820349]
[1644198213372,0.03807151,42186.0,42181.0,0.11820349]
[1644198213571,0.0377862,42186.0,42181.0,0.11820349]
[1644198213970,0.0377862,42186.0,42181.0,0.16820349]
[1644198214172,0.0377862,42186.0,42184.0,0.118537]
[1644198214372,0.00040464,42186.0,42184.0,0.118537]
[1644198214572,0.0377862,42185.0,42184.0,0.118537]
[1644198214773,0.00737707,42186.0,42184.0,0.1307508]
[1644198214774,0.00040464,42186.0,42184.0,0.1307508]
[1644198215171,0.241,42189.0,42185.0,0.05]
[1644198215573,0.00040589,42187.0,42185.0,0.05]
[1644198216171,0.00040589,42187.0,42185.0,0.16851]
[1644198216471,0.241,42189.0,42185.0,0.16851]
[1644198216472,0.24983742,42188.0,42185.0,0.16851]
[1644198216670,0.25024331,42188.0,42185.0,0.16851]
[1644198217725,0.24983742,42188.0,42185.0,0.16851]
[1644198219628,0.24983742,42188.0,42185.0,0.05]
[1644198219829,0.0377862,42186.0,42185.0,0.05]
[1644198220873,0.24983742,42188.0,42185.0,0.05]
[1644198221073,0.0377862,42186.0,42185.0,0.109266]
[1644198221274,0.24983742,42188.0,42185.0,0.109266]
[1644198221473,0.0377862,42186.0,42185.0,0.109266]
[1644198222176,0.0377862,42186.0,42181.0,0.16853]
[1644198222177,0.32113372,42186.0,42181.0,0.05]
[1644198222374,0.0377862,42182.0,42181.0,0.05]
[1644198222575,0.32934425,42182.0,42181.0,0.05]
[1644198222775,0.29286794,42182.0,42181.0,0.05]
[1644198222976,0.0377862,42182.0,42181.0,0.05]
[1644198223178,0.29069684,42182.0,42181.0,0.05]
[1644198223374,0.0377862,42182.0,42181.0,0.05]
[1644198223574,0.29255226,42182.0,42181.0,0.05]
[1644198225222,0.61997968,42182.0,42181.0,0.05]
[1644198229580,0.0377862,42182.0,42181.0,0.05]
[1644198231682,0.0375009,42182.0,42181.0,0.05]
[1644198232831,0.28935697,42182.0,42181.0,0.05]
[1644198233034,0.0612509,42182.0,42181.0,0.05]
[1644198234231,0.31799693,42182.0,42181.0,0.05]
[1644198234832,0.3116881,42182.0,42181.0,0.05]
[1644198236273,0.0612509,42182.0,42181.0,0.05]
[1644198236477,0.31468306,42182.0,42181.0,0.05]
[1644198236973,0.0612509,42182.0,42181.0,0.05]
[1644198237176,0.31389513,42182.0,42181.0,0.05]
[1644198238176,0.31389513,42182.0,42181.0,0.049686]
[1644198239623,0.30889513,42182.0,42181.0,0.049686]
[1644198240626,0.63898813,42182.0,42172.0,0.006]
[1644198240824,0.00604627,42181.0,42174.0,0.05]
[1644198241024,0.37639423,42182.0,42174.0,0.05]
[1644198241025,0.0325009,42175.0,42174.0,0.05]
[1644198241228,0.31150435,42175.0,42174.0,0.05]
[1644198241628,0.88167063,42175.0,42174.0,0.05]
[1644198242224,0.31150435,42175.0,42174.0,0.05]
[1644198242424,0.0325009,42175.0,42174.0,0.05]
[1644198244373,0.0562509,42175.0,42174.0,0.05]
[1644198244574,0.02375,42175.0,42174.0,0.0674991]
[1644198244775,0.02375,42175.0,42174.0,0.54349148]
[1644198244974,5e-05,42175.0,42174.0,0.59099148]
[1644198245173,5e-05,42175.0,42174.0,0.79099148]
[1644198245573,5e-05,42175.0,42174.0,1.22185684]
[1644198245774,0.00050087,42177.0,42176.0,0.059265]
[1644198245975,0.00050087,42177.0,42176.0,0.1242641]
[1644198246176,0.00050087,42177.0,42176.0,0.36421779]
[1644198246376,0.00050087,42177.0,42176.0,0.46421779]
[1644198246578,0.0775009,42184.0,42176.0,0.46421779]
[1644198246881,0.0325009,42184.0,42180.0,0.059276]
[1644198247126,0.045,42187.0,42181.0,0.106776]
[1644198247127,0.0064915,42187.0,42181.0,0.106776]
[1644198247325,0.0064915,42187.0,42182.0,0.0674991]
[1644198247526,0.0064915,42187.0,42186.0,0.0174991]
[1644198247727,0.001,42189.0,42186.0,0.0649991]
[1644198247928,0.001,42189.0,42187.0,0.05925]
[1644198248430,0.001,42189.0,42188.0,0.0174991]
[1644198249627,0.00071467,42189.0,42187.0,0.218515]
[1644198249827,0.00071467,42189.0,42187.0,0.15925]
[1644198250026,0.00071467,42189.0,42187.0,0.05925]
[1644198250227,0.00071467,42189.0,42185.0,0.168524]
[1644198250228,0.0325009,42188.0,42185.0,0.168524]
[1644198250430,0.045,42187.0,42185.0,0.168524]
[1644198250629,0.045,42187.0,42185.0,0.05]
[1644198251274,0.285,42187.0,42185.0,0.05]
[1644198251474,0.24,42187.0,42186.0,0.0174991]
[1644198252078,0.24,42187.0,42186.0,0.0767611]
[1644198252480,0.24,42187.0,42186.0,0.1242611]
[1644198252676,0.24,42187.0,42186.0,0.1742611]
[1644198253678,0.24,42187.0,42186.0,0.50416151]
[1644198253879,0.00071467,42189.0,42187.0,1.059242]
[1644198254079,0.00120928,42189.0,42188.0,0.41003491]
[1644198254279,0.00120928,42189.0,42188.0,0.56003491]
[1644198254524,0.004,42190.0,42189.0,1.0]
[1644198254724,0.004,42190.0,42189.0,1.41280186]
[1644198254920,0.004,42190.0,42189.0,1.51280186]
[1644198255122,0.004,42190.0,42189.0,1.3548694]
[1644198256724,0.004,42190.0,42189.0,1.3498694]
[1644198257725,0.004,42190.0,42189.0,1.2498694]
[1644198258025,0.004,42190.0,42189.0,1.1599991]
[1644198259079,0.004,42190.0,42189.0,1.24987324]
[1644198259480,0.004,42190.0,42189.0,0.25487324]
[1644198259681,0.004,42190.0,42189.0,0.35487324]
[1644198259883,0.004,42190.0,42189.0,0.1649991]
[1644198260081,0.004,42190.0,42189.0,0.0649991]
[1644198260482,0.004,42190.0,42189.0,0.0174991]
[1644198261082,0.004,42190.0,42188.0,0.1]
[1644198261282,0.004,42190.0,42189.0,0.0174991]
[1644198261684,0.004,42190.0,42189.0,0.0649991]
[1644198262527,0.004,42190.0,42189.0,0.13713702]
[1644198262725,0.244,42190.0,42189.0,0.13713702]
[1644198263725,0.244,42190.0,42189.0,0.45803414]
[1644198263925,0.244,42190.0,42189.0,0.23713702]
[1644198265131,0.244,42190.0,42189.0,0.13713702]
[1644198265530,0.244,42190.0,42189.0,0.08963702]
[1644198265782,0.244,42190.0,42189.0,0.0174991]
[1644198267377,0.244,42190.0,42189.0,0.33443787]
[1644198267578,0.244,42190.0,42189.0,0.0124991]
[1644198267977,0.244,42190.0,42189.0,0.0599991]
[1644198268378,0.24371472,42190.0,42189.0,0.0599991]
[1644198270732,0.24371472,42190.0,42189.0,0.0124991]
[1644198270733,0.32621562,42190.0,42189.0,0.0124991]
[1644198270933,0.32621562,42190.0,42186.0,0.24913614]
[1644198270934,0.24371472,42190.0,42186.0,0.18987414]
[1644198271132,0.24371472,42190.0,42185.0,0.05]
[1644198271334,0.0825009,42189.0,42186.0,0.0124991]
[1644198271730,0.24371472,42190.0,42186.0,0.0124991]
[1644198271731,0.32621562,42190.0,42186.0,0.0124991]
[1644198272534,0.32621562,42190.0,42186.0,0.0717671]
[1644198272936,0.32621562,42190.0,42186.0,0.1217671]
[1644198273134,0.32621562,42190.0,42186.0,0.1717671]
[1644198273374,0.24371472,42190.0,42186.0,0.1717671]
[1644198274174,0.24371472,42190.0,42189.0,0.0124991]
[1644198274574,0.24371472,42190.0,42186.0,0.159268]
[1644198274975,0.24371472,42190.0,42186.0,0.1]
[1644198275174,0.24371472,42190.0,42186.0,0.05]
[1644198275376,0.24371472,42190.0,42185.0,0.1]
[1644198275579,0.27710247,42190.0,42186.0,0.05]
[1644198275774,0.28936981,42190.0,42186.0,0.05]
[1644198275975,0.0825009,42189.0,42185.0,0.1624991]
[1644198277423,0.12411499,42189.0,42186.0,0.059269]
[1644198278823,0.04161409,42189.0,42186.0,0.059269]
[1644198279025,0.24371472,42190.0,42188.0,0.0124991]
[1644198279225,0.24371472,42190.0,42188.0,0.1217551]
[1644198279625,0.24371472,42190.0,42188.0,0.1717551]
[1644198280975,0.24342449,42190.0,42188.0,0.1717551]
[1644198282778,0.24342449,42190.0,42188.0,0.0624991]
[1644198283176,0.24342449,42190.0,42188.0,0.0124991]
[1644198283578,0.00742198,42189.0,42185.0,0.05]
[1644198283780,0.0375009,42186.0,42185.0,0.05]
[1644198284959,0.3675939,42186.0,42185.0,0.05]
[1644198285157,0.0375009,42186.0,42185.0,0.05]
[1644198285355,0.1375009,42186.0,42185.0,0.05]
[1644198286559,0.18987136,42182.0,42177.0,0.05]
[1644198286759,0.0375009,42178.0,42177.0,0.05]
[1644198286959,0.0375009,42178.0,42176.0,0.00055214]
[1644198286960,0.330093,42177.0,42176.0,0.00055214]
[1644198287161,0.66867467,42177.0,42176.0,0.00055214]
[1644198287359,0.430093,42177.0,42176.0,0.00055214]
[1644198287558,0.62693785,42177.0,42172.0,0.02591035]
[1644198287960,0.24940525,42174.0,42172.0,0.02591035]
[1644198288159,0.330093,42173.0,42172.0,0.02591035]
[1644198288377,0.330093,42173.0,42172.0,0.006]
[1644198288584,0.0825009,42173.0,42172.0,0.006]
[1644198288779,0.08927459,42173.0,42172.0,0.006]
[1644198288982,0.00878606,42181.0,42172.0,0.006]
[1644198289180,0.00878606,42181.0,42174.0,0.05]
[1644198289779,0.0375009,42180.0,42174.0,0.05]
[1644198289978,0.0375009,42180.0,42173.0,0.118571]
[1644198290177,0.0375009,42180.0,42175.0,0.05054894]
[1644198290380,0.0375009,42176.0,42175.0,0.05054894]
[1644198291182,0.0375009,42176.0,42175.0,0.05]
[1644198291383,0.30956521,42186.0,42175.0,0.05]
[1644198291384,0.0375009,42187.0,42175.0,0.57549052]
[1644198291580,0.0375009,42187.0,42182.0,0.0124991]
[1644198291781,0.0375009,42187.0,42182.0,0.0599991]
[1644198292831,0.0375009,42187.0,42184.0,0.11854]
[1644198293030,0.0825009,42187.0,42184.0,0.11854]
[1644198293229,0.0825009,42187.0,42182.0,0.2192691]
[1644198293529,0.0825009,42187.0,42182.0,0.15677]
[1644198293530,0.23634688,42183.0,42182.0,0.15677]
[1644198293738,0.53219846,42183.0,42176.0,0.1904231]
[1644198293931,0.0375009,42177.0,42176.0,0.00054896]
[1644198294132,0.30914547,42177.0,42176.0,0.00054896]
[1644198294330,0.29284795,42177.0,42176.0,0.00054896]
[1644198294732,0.29284795,42177.0,42175.0,0.05]
[1644198294930,0.25534705,42177.0,42175.0,0.05]
[1644198295130,0.0375009,42180.0,42175.0,0.0624991]
[1644198295330,0.0375009,42180.0,42175.0,0.05]
[1644198295630,0.03991395,42180.0,42175.0,0.1]
[1644198295876,0.04765856,42179.0,42175.0,0.1]
[1644198296076,0.04765856,42179.0,42175.0,0.218561]
[1644198296077,0.03828119,42179.0,42175.0,0.218561]
[1644198296280,0.03629675,42179.0,42175.0,0.21910994]
[1644198296481,0.31435125,42182.0,42176.0,0.05928]
[1644198296680,0.03801158,42182.0,42176.0,0.05928]
[1644198296881,0.03801158,42182.0,42176.0,0.0124991]
[1644198297079,0.24,42179.0,42176.0,0.05]
[1644198297481,0.24,42179.0,42176.0,0.05054894]
[1644198297782,0.2775009,42179.0,42176.0,0.05054894]
[1644198298480,0.24,42179.0,42176.0,0.05]
[1644198298885,0.24,42179.0,42177.0,0.118558]
[1644198299283,0.24,42179.0,42178.0,0.0124991]
[1644198299830,0.24,42179.0,42178.0,0.0599991]
[1644198300233,0.24,42179.0,42178.0,0.1599991]
[1644198301432,0.24,42179.0,42178.0,0.1475]
[1644198301631,0.24,42179.0,42178.0,0.1599991]
[1644198302731,0.24,42179.0,42178.0,0.1549991]
[1644198303587,0.00342449,42190.0,42184.0,0.059262]
[1644198303788,0.00342449,42190.0,42188.0,0.0124991]
[1644198303989,0.00342449,42190.0,42189.0,0.0475]
[1644198304187,0.00313916,42190.0,42189.0,0.0475]
[1644198307530,0.24313916,42190.0,42189.0,0.0475]
[1644198307730,0.24320723,42190.0,42189.0,0.0475]
[1644198309135,0.24320723,42190.0,42189.0,0.06812521]
[1644198310133,0.24320723,42190.0,42189.0,0.08062431]
[1644198315228,0.002,42191.0,42189.0,0.41573176]
[1644198315429,0.002,42191.0,42190.0,1.38433333]
[1644198315628,0.002,42191.0,42190.0,1.1475]
[1644198315828,0.00443465,42192.0,42190.0,1.33661921]
[1644198316030,0.00443465,42192.0,42190.0,1.57649335]
[1644198316229,0.00443465,42192.0,42191.0,0.18987414]
[1644198316230,0.00343465,42192.0,42191.0,0.18987414]
[1644198316430,0.00043465,42194.0,42192.0,1.059249]
[1644198316729,0.00043465,42194.0,42193.0,0.1099991]
[1644198316932,0.00043465,42194.0,42193.0,0.1599991]
[1644198317329,0.00043465,42194.0,42193.0,0.1475]
[1644198317529,0.03793555,42194.0,42193.0,0.1475]
[1644198317729,0.00043465,42194.0,42193.0,0.1599991]
[1644198318030,0.00043465,42194.0,42193.0,0.1475]
[1644198318281,0.00043465,42194.0,42193.0,0.1599991]
[1644198318478,0.19331706,42202.0,42194.0,0.7]
[1644198318678,0.001,42203.0,42196.0,0.118506]
[1644198318876,0.001,42203.0,42198.0,0.05]
[1644198319077,0.00039563,42200.0,42196.0,0.126006]
[1644198319276,0.00039563,42200.0,42197.0,0.0475]
[1644198319877,0.00039563,42200.0,42198.0,0.059255]
[1644198320078,0.001,42203.0,42198.0,0.106755]
[1644198320280,0.00039563,42201.0,42198.0,0.106755]
[1644198320479,0.00039563,42201.0,42200.0,0.05]
[1644198320681,0.001,42203.0,42201.0,1.0]
[1644198320880,0.002,42205.0,42202.0,0.41884909]
[1644198321078,0.002,42205.0,42204.0,0.05]
[1644198321279,0.002,42205.0,42204.0,0.0975]
[1644198321678,0.0214687,42206.0,42205.0,1.118454]
[1644198321878,0.0214687,42206.0,42205.0,1.265954]
[1644198322132,0.0164687,42206.0,42205.0,0.265954]
[1644198322330,0.01618342,42206.0,42205.0,0.265954]
[1644198322531,0.002,42207.0,42206.0,0.95]
[1644198322731,0.002,42207.0,42206.0,1.0975]
[1644198322930,0.002,42207.0,42206.0,1.1975]
[1644198323733,0.002,42207.0,42206.0,1.256724]
[1644198323932,0.002,42207.0,42206.0,0.306724]
[1644198325634,0.002,42207.0,42206.0,0.206724]
[1644198325881,0.002,42207.0,42206.0,0.306724]
[1644198326480,0.002,42207.0,42206.0,0.32734921]
[1644198327481,0.002,42207.0,42206.0,0.25234921]
[1644198328083,0.002,42207.0,42206.0,0.15234921]
[1644198328283,0.002,42207.0,42206.0,0.4746465]
[1644198328483,0.00149002,42209.0,42206.0,0.5746465]
[1644198328484,0.001,42209.0,42206.0,0.5746465]
[1644198328684,0.001,42209.0,42207.0,0.0592276]
[1644198328685,0.00149002,42209.0,42207.0,0.0592276]
[1644198328884,0.00149002,42209.0,42208.0,0.0475]
[1644198329083,0.00149002,42209.0,42208.0,0.0975]
[1644198329284,0.00149002,42209.0,42208.0,0.1475]
[1644198329532,0.001,42209.0,42208.0,0.1475]
[1644198330037,0.001,42213.0,42209.0,0.094]
[1644198330038,0.00249002,42212.0,42209.0,0.094]
[1644198330239,0.001,42218.0,42209.0,0.094]
[1644198330240,0.002,42224.0,42215.0,1.05]
[1644198330436,0.002,42224.0,42221.0,0.05]
[1644198330637,0.002,42224.0,42221.0,0.5410337]
[1644198330839,0.002,42224.0,42221.0,0.6410337]
[1644198331036,0.002,42224.0,42221.0,0.67779066]
[1644198331339,0.002,42233.0,42225.0,0.05]
[1644198331341,0.045,42230.0,42225.0,0.05]
[1644198331538,0.045,42230.0,42226.0,0.0475]
[1644198331742,0.045,42230.0,42226.0,0.1475]
[1644198332339,0.26284637,42228.0,42226.0,0.0975]
[1644198332545,0.26284637,42228.0,42226.0,0.275116]
[1644198332546,0.27458958,42227.0,42226.0,0.275116]
[1644198332741,0.27458958,42227.0,42226.0,0.168411]
[1644198333040,0.2560204,42227.0,42226.0,0.118411]
[1644198333286,0.44877896,42227.0,42226.0,0.118411]
[1644198333879,0.44877896,42227.0,42222.0,0.02062521]
[1644198333880,0.19275856,42227.0,42222.0,0.02062521]
[1644198334082,0.045,42223.0,42222.0,0.02062521]
[1644198336181,0.045,42223.0,42222.0,0.07062521]
[1644198336582,0.00014517,42225.0,42223.0,0.059213]
[1644198336781,0.045,42230.0,42223.0,0.059213]
[1644198337028,0.045,42230.0,42225.0,0.059208]
[1644198337228,0.00442751,42231.0,42228.0,0.01031265]
[1644198337430,0.045,42229.0,42228.0,0.13902952]
[1644198337829,0.045,42229.0,42228.0,0.18902952]
[1644198339731,0.00433082,42231.0,42229.0,0.05]
[1644198340532,0.00384692,42231.0,42229.0,0.05]
[1644198340801,0.00384692,42231.0,42228.0,0.07983421]
[1644198341195,0.19406937,42230.0,42228.0,0.07983421]
[1644198341593,0.24384692,42231.0,42228.0,0.07983421]
[1644198341794,0.24433082,42231.0,42228.0,0.07983421]
[1644198341995,0.24433082,42231.0,42228.0,0.12983421]
[1644198342195,0.24433082,42231.0,42228.0,0.07983421]
[1644198342393,0.24433082,42231.0,42229.0,0.05]
[1644198342595,0.24433082,42231.0,42230.0,0.02062521]
[1644198342797,0.24384692,42231.0,42230.0,0.02062521]
[1644198343194,0.14384692,42231.0,42230.0,0.02062521]
[1644198343396,0.14384692,42231.0,42230.0,0.13902721]
[1644198345233,0.14384692,42231.0,42230.0,0.02062521]
[1644198345632,0.14384692,42231.0,42230.0,0.01950766]
[1644198345832,0.17775426,42231.0,42230.0,0.01950766]
[1644198346037,0.14384692,42231.0,42230.0,0.01950766]
[1644198346234,0.17805974,42231.0,42230.0,0.01950766]
[1644198346534,0.14384692,42231.0,42230.0,0.01950766]
[1644198347734,0.14384692,42231.0,42230.0,0.01031256]
[1644198348133,0.14384692,42231.0,42230.0,0.01950766]
[1644198349474,0.14384692,42231.0,42230.0,0.07870766]
[1644198349874,0.14384692,42231.0,42230.0,0.01950766]
[1644198350276,0.14284692,42231.0,42230.0,0.01950766]
[1644198350482,0.14184692,42231.0,42230.0,0.06950766]
[1644198350784,0.14184692,42231.0,42230.0,0.27420766]
[1644198350985,0.14184692,42231.0,42230.0,0.27156162]
[1644198351178,0.14184692,42231.0,42230.0,0.27987418]
[1644198352029,0.0011483,42233.0,42230.0,0.27987418]
[1644198352030,0.0011483,42233.0,42231.0,1.0]
[1644198352231,0.0011483,42233.0,42232.0,0.5475]
[1644198352428,0.001,42233.0,42232.0,0.6475]
[1644198353430,0.001,42233.0,42232.0,0.6566951]
[1644198356381,0.001,42233.0,42232.0,0.66500766]
[1644198359183,0.00037536,42235.0,42232.0,0.66500766]
[1644198359184,0.00037536,42235.0,42232.0,0.67067418]
[1644198359384,0.00037536,42235.0,42234.0,0.109182]
[1644198359630,0.004,42236.0,42234.0,0.656682]
[1644198359828,0.00437536,42236.0,42234.0,0.7658771]
[1644198360831,0.004,42236.0,42234.0,0.7658771]
[1644198361830,0.004,42236.0,42235.0,0.05]
[1644198362030,0.004,42236.0,42235.0,0.5975]
[1644198362230,0.004,42236.0,42235.0,0.70581256]
[1644198363031,0.004,42236.0,42235.0,0.65581256]
[1644198363286,0.004,42236.0,42235.0,0.50831256]
[1644198363778,0.03925824,42236.0,42235.0,0.50831256]
[1644198363977,0.244,42236.0,42235.0,0.50831256]
[1644198364177,0.27883752,42236.0,42235.0,0.50831256]
[1644198364578,0.27883752,42236.0,42235.0,0.00831256]
[1644198364879,0.27883752,42236.0,42227.0,0.05]
[1644198364880,0.5,42235.0,42232.0,0.2]
[1644198365076,0.54685654,42235.0,42232.0,0.2]
[1644198365279,0.03312613,42233.0,42232.0,0.2]
[1644198365477,0.8727679,42235.0,42232.0,0.2]
[1644198365478,0.9319789,42235.0,42232.0,0.2]
[1644198365779,0.05,42233.0,42232.0,0.2]
[1644198366376,0.15013076,42233.0,42232.0,0.2]
[1644198366577,0.05606354,42233.0,42232.0,0.2]
[1644198366776,0.05,42233.0,42232.0,0.2]
[1644198368234,0.05,42233.0,42216.0,0.538422]
[1644198368235,0.39,42228.0,42216.0,0.538422]
[1644198368434,0.05,42224.0,42220.0,0.01998217]
[1644198368634,0.19315666,42223.0,42220.0,0.01998217]
[1644198368836,0.330093,42222.0,42220.0,0.01998217]
[1644198369033,0.26839558,42221.0,42220.0,0.01998217]
[1644198369832,0.36532775,42221.0,42220.0,0.01998217]
[1644198370033,0.47886003,42221.0,42220.0,0.01998217]
[1644198370237,0.57721722,42221.0,42220.0,0.02917727]
[1644198370435,0.36964902,42223.0,42220.0,0.02917727]
[1644198370643,0.0065522,42229.0,42220.0,0.0091951]
[1644198370881,0.00039547,42223.0,42220.0,0.0091951]
[1644198371482,0.19106112,42222.0,42220.0,0.0091951]
[1644198372482,0.29381559,42221.0,42220.0,0.0091951]
[1644198374183,0.72182085,42221.0,42220.0,0.0091951]
[1644198374385,0.63139025,42221.0,42220.0,0.0091951]
[1644198374833,0.73148674,42221.0,42220.0,0.0091951]
[1644198375033,0.63139025,42221.0,42220.0,0.0091951]
[1644198375234,1.09523803,42219.0,42207.0,0.13951014]
[1644198375446,1.09523803,42219.0,42202.0,0.18586426]
[1644198375447,0.05,42211.0,42202.0,0.18586426]
[1644198375636,0.05,42211.0,42196.0,0.20948805]
[1644198375637,0.2581445,42203.0,42196.0,0.20948805]
[1644198375835,0.330093,42201.0,42196.0,0.20948805]
[1644198376035,0.330093,42201.0,42189.0,0.18534204]
[1644198376036,0.0475,42200.0,42189.0,0.18534204]
[1644198376236,0.20677308,42193.0,42184.0,0.18534204]
[1644198376436,0.28951141,42192.0,42184.0,0.18534204]
[1644198376637,0.03758496,42191.0,42189.0,0.05]
[1644198377038,0.33848979,42204.0,42189.0,0.05]
[1644198377236,0.33504544,42204.0,42197.0,0.05]
[1644198377437,0.0455395,42203.0,42189.0,0.10925]
[1644198377636,0.19996347,42200.0,42196.0,0.05]
[1644198377936,0.20657968,42204.0,42196.0,0.05]
[1644198378135,0.04857682,42204.0,42199.0,0.059243]
[1644198378390,0.22355232,42210.0,42199.0,0.059243]
[1644198378391,0.04545241,42203.0,42199.0,0.059243]
[1644198378589,0.29481851,42206.0,42196.0,0.05]
[1644198378790,0.03511516,42201.0,42199.0,0.05]
[1644198378988,0.04564205,42205.0,42196.0,0.09924467]
[1644198379190,0.04564205,42205.0,42199.0,0.00055388]
[1644198379191,0.28940049,42205.0,42199.0,0.00055388]
[1644198379388,0.28940049,42205.0,42199.0,0.04055388]
[1644198379588,0.01,42202.0,42199.0,0.00055388]
[1644198379790,0.28940049,42205.0,42199.0,0.00055388]
[1644198379988,0.29940049,42205.0,42199.0,0.00055388]
[1644198380187,0.29940049,42205.0,42197.0,0.04]
[1644198380391,0.05564205,42205.0,42200.0,0.00055387]
[1644198380693,0.05564205,42205.0,42204.0,0.04]
[1644198380694,0.0185918,42205.0,42204.0,0.04]
[1644198381491,0.23359495,42205.0,42202.0,0.00055385]
[1644198381695,0.01,42203.0,42202.0,0.00055385]
[1644198381890,0.05664311,42203.0,42202.0,0.00055385]
[1644198382130,0.33451896,42203.0,42202.0,0.00055385]
[1644198382531,0.59057256,42203.0,42196.0,0.04]
[1644198382732,0.59057256,42203.0,42200.0,0.00055387]
[1644198382733,0.04664311,42203.0,42200.0,0.00055387]
[1644198382929,0.1218,42209.0,42200.0,0.00055387]
[1644198383133,0.22123753,42215.0,42200.0,0.00055387]
[1644198383134,0.35010862,42206.0,42200.0,0.00055387]
[1644198383332,0.01,42201.0,42200.0,0.00055387]
[1644198383531,0.04879235,42205.0,42200.0,0.00055387]
[1644198383532,0.22890782,42203.0,42200.0,0.00055387]
[1644198383732,0.22389136,42202.0,42198.0,0.05]
[1644198384032,0.01,42201.0,42198.0,0.05050697]
[1644198384235,0.22389136,42202.0,42198.0,0.05050697]
[1644198384635,0.23389136,42202.0,42198.0,0.10974931]
[1644198385035,0.23389136,42202.0,42198.0,0.10924234]
[1644198385236,0.01,42199.0,42198.0,0.05050698]